[Event "Live Chess"]
[Site "Chess.com"]
[Date "2023.05.21"]
[Round "-"]
[White "JoeyCage"]
[Black "Shepherds_Pie"]
[Result "1-0"]
[WhiteElo "2296"]
[BlackElo "1925"]
[TimeControl "300"]
[EndTime "16:22:45 PDT"]
[Termination "JoeyCage won by resignation"]

1. e4 {[%clk 0:04:58.6]} 1... e6 {[%clk 0:04:55.3]} 2. d4 {[%clk 0:04:57.2]}
2... d5 {[%clk 0:04:52]} 3. Nc3 {[%clk 0:04:55.3]} 3... Bb4 {[%clk 0:04:50.3]}
4. e5 {[%clk 0:04:52.7]} 4... c5 {[%clk 0:04:48.1]} 5. a3 {[%clk 0:04:51.6]}
5... Ba5 {[%clk 0:04:47.1]} 6. b4 {[%clk 0:04:44.2]} 6... cxd4 {[%clk 0:04:44]}
7. Qxd4 {[%clk 0:04:40.4]} 7... Bb6 {[%clk 0:04:36.1]} 8. Qg4 {[%clk 0:04:38.8]}
8... Ne7 {[%clk 0:04:34.5]} 9. Na4 {[%clk 0:04:32.3]} 9... Nbc6 {[%clk
0:04:28.4]} 10. Nxb6 {[%clk 0:04:30.3]} 10... Qxb6 {[%clk 0:04:27.2]} 11. Nf3
{[%clk 0:04:27.4]} 11... Bd7 {[%clk 0:04:20.8]} 12. Be3 {[%clk 0:04:24.3]} 12...
Qc7 {[%clk 0:04:19.4]} 13. Qxg7 {[%clk 0:04:19.4]} 13... Rg8 {[%clk 0:04:17.8]}
14. Qxh7 {[%clk 0:04:18.3]} 14... Nxe5 {[%clk 0:04:15.9]} 15. Bd4 {[%clk
0:03:58]} 15... Nxf3+ {[%clk 0:04:07]} 16. gxf3 {[%clk 0:03:56.1]} 16... O-O-O
{[%clk 0:03:59.9]} 17. O-O-O {[%clk 0:03:51.1]} 17... Nf5 {[%clk 0:03:50.8]} 18.
Bb2 {[%clk 0:03:46.5]} 18... Ba4 {[%clk 0:03:38.9]} 19. Bd3 {[%clk 0:03:40.5]}
19... Qf4+ {[%clk 0:03:29.3]} 20. Kb1 {[%clk 0:03:36]} 20... Nd6 {[%clk
0:03:16.2]} 21. Rhg1 {[%clk 0:03:21.6]} 21... Rxg1 {[%clk 0:03:13.2]} 22. Rxg1
{[%clk 0:03:19.2]} 22... Nc4 {[%clk 0:03:10.7]} 23. Bc1 {[%clk 0:03:08.2]} 23...
Qd4 {[%clk 0:02:55.9]} 24. Qxf7 {[%clk 0:02:56.4]} 24... Bd7 {[%clk 0:02:39.2]}
25. Rg7 {[%clk 0:02:30.4]} 25... Ne5 {[%clk 0:02:28.7]} 26. Qf6 {[%clk
0:02:22.3]} 26... Ba4 {[%clk 0:01:44.2]} 27. Bb2 {[%clk 0:02:13.5]} 1-0

[Event "Live Chess"]
[Site "Chess.com"]
[Date "2023.05.21"]
[Round "-"]
[White "blowerd"]
[Black "karimghalambaz"]
[Result "1-0"]
[WhiteElo "1394"]
[BlackElo "1273"]
[TimeControl "300"]
[EndTime "16:22:54 PDT"]
[Termination "blowerd won by resignation"]

1. e4 {[%clk 0:04:58.3]} 1... c5 {[%clk 0:04:56.1]} 2. Nf3 {[%clk 0:04:56.7]}
2... d6 {[%clk 0:04:54.8]} 3. Bc4 {[%clk 0:04:55.5]} 3... Nc6 {[%clk 0:04:53]}
4. Nc3 {[%clk 0:04:54.6]} 4... Nf6 {[%clk 0:04:51.5]} 5. d4 {[%clk 0:04:53.4]}
5... cxd4 {[%clk 0:04:50.1]} 6. Nxd4 {[%clk 0:04:51.4]} 6... g6 {[%clk
0:04:48.2]} 7. O-O {[%clk 0:04:48.4]} 7... Bg7 {[%clk 0:04:46.6]} 8. Nxc6 {[%clk
0:04:46.4]} 8... bxc6 {[%clk 0:04:45.1]} 9. Re1 {[%clk 0:04:45.5]} 9... O-O
{[%clk 0:04:43.4]} 10. Bg5 {[%clk 0:04:41.2]} 10... h6 {[%clk 0:04:40.1]} 11.
Bxf6 {[%clk 0:04:39.4]} 11... Bxf6 {[%clk 0:04:38.4]} 12. Qd2 {[%clk 0:04:34.7]}
12... Bg7 {[%clk 0:04:36.6]} 13. Rad1 {[%clk 0:04:32.5]} 13... Qb6 {[%clk
0:04:31.6]} 14. Bb3 {[%clk 0:04:28.1]} 14... Bd7 {[%clk 0:04:25.4]} 15. Na4
{[%clk 0:04:22.9]} 15... Qb7 {[%clk 0:04:17.8]} 16. c3 {[%clk 0:04:06.6]} 16...
Rad8 {[%clk 0:04:14.5]} 17. Re3 {[%clk 0:03:53.8]} 17... Be6 {[%clk 0:03:58.8]}
18. Bxe6 {[%clk 0:03:46.8]} 18... fxe6 {[%clk 0:03:56.9]} 19. Rd3 {[%clk
0:03:45.7]} 19... d5 {[%clk 0:03:49.5]} 20. Nc5 {[%clk 0:03:35.7]} 20... Qc8
{[%clk 0:03:45.4]} 21. exd5 {[%clk 0:03:27.9]} 21... cxd5 {[%clk 0:03:33]} 22.
Qe3 {[%clk 0:03:11.5]} 22... Rf6 {[%clk 0:03:22.7]} 23. Nb3 {[%clk 0:03:02.2]}
23... Rd6 {[%clk 0:03:19.9]} 24. Qxa7 {[%clk 0:02:57.5]} 24... Qf8 {[%clk
0:03:02.2]} 25. Qe3 {[%clk 0:02:50.4]} 25... e5 {[%clk 0:02:52]} 26. Rxd5 {[%clk
0:02:38.8]} 26... Rxd5 {[%clk 0:02:42]} 27. Rxd5 {[%clk 0:02:36.4]} 27... e6
{[%clk 0:02:40.1]} 28. Rd2 {[%clk 0:02:26.8]} 28... Rf4 {[%clk 0:02:34.5]} 29.
Re2 {[%clk 0:02:23.5]} 29... Qd6 {[%clk 0:02:26.5]} 30. Qd2 {[%clk 0:02:15.3]}
30... Qxd2 {[%clk 0:02:18.3]} 31. Rxd2 {[%clk 0:02:13]} 31... e4 {[%clk
0:02:15.7]} 32. g3 {[%clk 0:02:10.7]} 32... Rf3 {[%clk 0:02:11.3]} 33. Re2
{[%clk 0:02:07.8]} 33... Rd3 {[%clk 0:02:02.8]} 34. Rxe4 {[%clk 0:02:04.8]}
34... e5 {[%clk 0:01:59.1]} 35. Nc5 {[%clk 0:02:01.7]} 35... Rd2 {[%clk
0:01:55.3]} 36. Rb4 {[%clk 0:01:55.7]} 36... Rc2 {[%clk 0:01:49.2]} 37. Rb3
{[%clk 0:01:52.9]} 37... Rc1+ {[%clk 0:01:42]} 38. Kg2 {[%clk 0:01:50.5]} 38...
Rc2 {[%clk 0:01:38.9]} 39. Ne6 {[%clk 0:01:47]} 39... Kf7 {[%clk 0:01:35]} 40.
Nxg7 {[%clk 0:01:44.8]} 40... Kxg7 {[%clk 0:01:32.4]} 41. Kf3 {[%clk 0:01:35.2]}
41... Kf6 {[%clk 0:01:30.2]} 42. a4 {[%clk 0:01:31.4]} 42... Kf5 {[%clk
0:01:28.2]} 43. a5 {[%clk 0:01:28.9]} 43... e4+ {[%clk 0:01:26.1]} 44. Ke3
{[%clk 0:01:27.2]} 44... Rc1 {[%clk 0:01:19.9]} 45. a6 {[%clk 0:01:24.5]} 45...
Re1+ {[%clk 0:01:17.6]} 46. Kd2 {[%clk 0:01:22.5]} 46... Ra1 {[%clk 0:01:14.9]}
47. Ra3 {[%clk 0:01:20.8]} 47... Rf1 {[%clk 0:01:03.1]} 48. Ke3 {[%clk
0:01:15.5]} 48... Rh1 {[%clk 0:01:01]} 49. h4 {[%clk 0:01:12.7]} 49... Kg4
{[%clk 0:00:56]} 50. a7 {[%clk 0:01:09.9]} 50... g5 {[%clk 0:00:52]} 51. a8=Q
{[%clk 0:01:07]} 51... gxh4 {[%clk 0:00:49.3]} 52. Qxe4+ {[%clk 0:01:02.5]}
52... Kh3 {[%clk 0:00:47.6]} 53. Qxh4+ {[%clk 0:01:00.1]} 53... Kg2 {[%clk
0:00:45.1]} 54. Qxh1+ {[%clk 0:00:57.8]} 54... Kxh1 {[%clk 0:00:43.3]} 55. Ra4
{[%clk 0:00:55.5]} 55... Kg2 {[%clk 0:00:38.6]} 56. Rh4 {[%clk 0:00:53.9]} 1-0

[Event "Live Chess"]
[Site "Chess.com"]
[Date "2023.05.21"]
[Round "-"]
[White "Ed_Knox"]
[Black "LodeshChess"]
[Result "1-0"]
[WhiteElo "1469"]
[BlackElo "1143"]
[TimeControl "300"]
[EndTime "16:23:01 PDT"]
[Termination "Ed_Knox won by resignation"]

1. d4 {[%clk 0:04:57.3]} 1... Nf6 {[%clk 0:04:58.7]} 2. Bf4 {[%clk 0:04:55.9]}
2... c5 {[%clk 0:04:57.1]} 3. d5 {[%clk 0:04:50.7]} 3... d6 {[%clk 0:04:53.6]}
4. Nc3 {[%clk 0:04:47]} 4... e5 {[%clk 0:04:52.3]} 5. dxe6 {[%clk 0:04:43.9]}
5... Bxe6 {[%clk 0:04:51.3]} 6. e4 {[%clk 0:04:43.4]} 6... Qa5 {[%clk
0:04:43.9]} 7. Bd2 {[%clk 0:04:37.4]} 7... g6 {[%clk 0:04:35.2]} 8. Nd5 {[%clk
0:04:31.5]} 8... Qd8 {[%clk 0:04:26.9]} 9. Bc3 {[%clk 0:04:19.7]} 9... Bg7
{[%clk 0:04:21.7]} 10. Bb5+ {[%clk 0:04:02.4]} 10... Nc6 {[%clk 0:04:10.7]} 11.
Bxf6 {[%clk 0:03:44]} 11... Bxf6 {[%clk 0:04:06.3]} 12. Nxf6+ {[%clk 0:03:42.2]}
12... Qxf6 {[%clk 0:04:05.3]} 13. Bxc6+ {[%clk 0:03:41.5]} 13... bxc6 {[%clk
0:04:04.2]} 14. c3 {[%clk 0:03:35.6]} 14... Qg5 {[%clk 0:03:47.3]} 15. Qf3
{[%clk 0:03:26.7]} 15... Bg4 {[%clk 0:03:35.2]} 16. Qg3 {[%clk 0:03:22]} 16...
f6 {[%clk 0:03:20.2]} 17. h3 {[%clk 0:03:03.6]} 17... Bd7 {[%clk 0:03:16.9]} 18.
Qxg5 {[%clk 0:03:02]} 18... fxg5 {[%clk 0:03:16.2]} 19. Nf3 {[%clk 0:02:59.8]}
19... h6 {[%clk 0:03:13.2]} 20. O-O-O {[%clk 0:02:47.4]} 20... Ke7 {[%clk
0:02:56.2]} 21. e5 {[%clk 0:02:46.3]} 21... dxe5 {[%clk 0:02:47.9]} 22. Nxe5
{[%clk 0:02:45.3]} 22... Rhd8 {[%clk 0:02:43]} 23. Nxg6+ {[%clk 0:02:37]} 23...
Kf6 {[%clk 0:02:34]} 24. Rd6+ {[%clk 0:02:17.7]} 24... Kg7 {[%clk 0:02:32.4]}
25. Rhd1 {[%clk 0:02:15.8]} 25... a5 {[%clk 0:02:16.6]} 26. Ne5 {[%clk
0:02:14.5]} 26... Ra7 {[%clk 0:01:40.1]} 27. Nxd7 {[%clk 0:02:11.9]} 1-0

[Event "Live Chess"]
[Site "Chess.com"]
[Date "2023.05.21"]
[Round "-"]
[White "wadsy27"]
[Black "WelshTiger"]
[Result "1-0"]
[WhiteElo "2571"]
[BlackElo "2358"]
[TimeControl "300"]
[EndTime "16:23:04 PDT"]
[Termination "wadsy27 won by resignation"]

1. Nf3 {[%clk 0:04:57.4]} 1... d5 {[%clk 0:04:55.3]} 2. g3 {[%clk 0:04:55.9]}
2... Nf6 {[%clk 0:04:47.8]} 3. Bg2 {[%clk 0:04:53.6]} 3... h6 {[%clk 0:04:47.3]}
4. c4 {[%clk 0:04:51.7]} 4... c6 {[%clk 0:04:46]} 5. O-O {[%clk 0:04:48.6]} 5...
dxc4 {[%clk 0:04:23.1]} 6. Qc2 {[%clk 0:04:43.8]} 6... Nbd7 {[%clk 0:04:21.7]}
7. Na3 {[%clk 0:04:37.8]} 7... Nb6 {[%clk 0:04:20.2]} 8. Nxc4 {[%clk 0:04:36.3]}
8... Nxc4 {[%clk 0:04:19.5]} 9. Qxc4 {[%clk 0:04:35.8]} 9... Be6 {[%clk
0:04:19.1]} 10. Qc2 {[%clk 0:04:34]} 10... g6 {[%clk 0:04:14.9]} 11. Re1 {[%clk
0:04:32.5]} 11... Bg7 {[%clk 0:04:13.7]} 12. d4 {[%clk 0:04:31.3]} 12... O-O
{[%clk 0:04:06.1]} 13. e4 {[%clk 0:04:26.6]} 13... Nd7 {[%clk 0:03:59.2]} 14.
Be3 {[%clk 0:04:18.4]} 14... Kh7 {[%clk 0:03:57.2]} 15. a3 {[%clk 0:04:13.9]}
15... Bg4 {[%clk 0:03:50.4]} 16. Rad1 {[%clk 0:04:04.5]} 16... Qc7 {[%clk
0:03:43.1]} 17. h3 {[%clk 0:03:52.6]} 17... Bxf3 {[%clk 0:03:41.7]} 18. Bxf3
{[%clk 0:03:51.9]} 18... e5 {[%clk 0:03:39.7]} 19. dxe5 {[%clk 0:03:46.6]} 19...
Nxe5 {[%clk 0:03:36.2]} 20. Bg2 {[%clk 0:03:45.1]} 20... Rad8 {[%clk 0:03:30.5]}
21. f4 {[%clk 0:03:32.3]} 21... Nd7 {[%clk 0:03:27.6]} 22. e5 {[%clk 0:03:30.1]}
22... Nb6 {[%clk 0:03:24]} 23. Kh2 {[%clk 0:03:27.1]} 23... Rxd1 {[%clk
0:03:17]} 24. Rxd1 {[%clk 0:03:25.6]} 24... Rd8 {[%clk 0:03:16.9]} 25. h4 {[%clk
0:03:18.6]} 25... Rxd1 {[%clk 0:03:10.3]} 26. Qxd1 {[%clk 0:03:17.3]} 26... Nc4
{[%clk 0:03:09.8]} 27. Bc1 {[%clk 0:03:10.7]} 27... Qb6 {[%clk 0:02:58.3]} 28.
h5 {[%clk 0:03:06.4]} 28... Ne3 {[%clk 0:02:53.3]} 29. hxg6+ {[%clk 0:03:01.3]}
29... fxg6 {[%clk 0:02:48.9]} 30. Qe2 {[%clk 0:02:38.6]} 30... Nxg2 {[%clk
0:02:43.6]} 31. Kxg2 {[%clk 0:02:37.1]} 31... Qc5 {[%clk 0:02:40.7]} 32. Be3
{[%clk 0:02:30.7]} 32... Qd5+ {[%clk 0:02:39.7]} 33. Kf2 {[%clk 0:02:23.9]}
33... Bf8 {[%clk 0:02:38.4]} 34. Qd2 {[%clk 0:02:13.9]} 34... Qh1 {[%clk
0:02:33.4]} 35. Qd7+ {[%clk 0:02:11.1]} 35... Bg7 {[%clk 0:02:26.6]} 36. e6
{[%clk 0:01:58.7]} 36... Qh2+ {[%clk 0:02:24.5]} 37. Kf3 {[%clk 0:01:57.7]}
37... Qh1+ {[%clk 0:02:23.6]} 38. Ke2 {[%clk 0:01:56.6]} 38... Qg2+ {[%clk
0:02:14.8]} 39. Bf2 {[%clk 0:01:55.3]} 39... Qe4+ {[%clk 0:02:13.6]} 40. Kd2
{[%clk 0:01:54]} 40... Qf3 {[%clk 0:02:03.6]} 41. Bd4 {[%clk 0:01:43]} 41...
Qg2+ {[%clk 0:01:58.2]} 42. Kd3 {[%clk 0:01:34.4]} 42... Qf1+ {[%clk 0:01:55.7]}
43. Kc3 {[%clk 0:01:31.6]} 43... Qc1+ {[%clk 0:01:53.6]} 44. Kb3 {[%clk
0:01:27.1]} 44... Qd1+ {[%clk 0:01:52.3]} 45. Ka2 {[%clk 0:01:26.4]} 45... Qxd4
{[%clk 0:01:50.9]} 46. Qxd4 {[%clk 0:01:25.4]} 46... Bxd4 {[%clk 0:01:50]} 47.
e7 {[%clk 0:01:25]} 1-0

[Event "Live Chess"]
[Site "Chess.com"]
[Date "2023.05.21"]
[Round "-"]
[White "wot-not"]
[Black "manthanit"]
[Result "1-0"]
[WhiteElo "1544"]
[BlackElo "1053"]
[TimeControl "300"]
[EndTime "16:23:09 PDT"]
[Termination "wot-not won by checkmate"]

1. e4 {[%clk 0:04:58.1]} 1... e6 {[%clk 0:04:59.3]} 2. f4 {[%clk 0:04:56]} 2...
d5 {[%clk 0:04:59]} 3. e5 {[%clk 0:04:51.8]} 3... c5 {[%clk 0:04:57.1]} 4. Nf3
{[%clk 0:04:49.6]} 4... Ne7 {[%clk 0:04:45.4]} 5. d4 {[%clk 0:04:48.5]} 5...
Nbc6 {[%clk 0:04:39.8]} 6. Bd3 {[%clk 0:04:45.4]} 6... Ng6 {[%clk 0:04:35.9]} 7.
O-O {[%clk 0:04:43.1]} 7... cxd4 {[%clk 0:04:34.2]} 8. Bxg6 {[%clk 0:04:37.6]}
8... hxg6 {[%clk 0:04:32.3]} 9. Nbd2 {[%clk 0:04:37]} 9... Bc5 {[%clk
0:04:28.7]} 10. Kh1 {[%clk 0:04:32.5]} 10... f6 {[%clk 0:04:11.7]} 11. Nb3
{[%clk 0:04:31.5]} 11... Bb6 {[%clk 0:04:09.6]} 12. Qe2 {[%clk 0:04:20.1]} 12...
fxe5 {[%clk 0:04:06.3]} 13. Nxe5 {[%clk 0:04:19.2]} 13... Qh4 {[%clk 0:04:02.6]}
14. h3 {[%clk 0:04:09.7]} 14... O-O {[%clk 0:03:45.2]} 15. Nxg6 {[%clk
0:04:02.4]} 15... Qf6 {[%clk 0:03:42.6]} 16. Nxf8 {[%clk 0:04:01.1]} 16... Qxf8
{[%clk 0:03:42.4]} 17. Bd2 {[%clk 0:03:52.6]} 17... Qe7 {[%clk 0:03:17.6]} 18.
a3 {[%clk 0:03:42.5]} 18... a5 {[%clk 0:03:15.6]} 19. Rae1 {[%clk 0:03:38.2]}
19... Ba7 {[%clk 0:03:09.2]} 20. Nc1 {[%clk 0:03:33.1]} 20... b5 {[%clk
0:03:07.7]} 21. Nd3 {[%clk 0:03:31]} 21... Bb6 {[%clk 0:03:05.1]} 22. Ne5 {[%clk
0:03:14.8]} 22... Nxe5 {[%clk 0:03:03.5]} 23. Qxe5 {[%clk 0:03:13.3]} 23... Bc7
{[%clk 0:03:01.1]} 24. Qxd4 {[%clk 0:03:10.2]} 24... Ba6 {[%clk 0:02:58.1]} 25.
Rf3 {[%clk 0:02:51.1]} 25... Rb8 {[%clk 0:02:39.8]} 26. Rg3 {[%clk 0:02:36.7]}
26... Bb6 {[%clk 0:02:33]} 27. Qe5 {[%clk 0:02:32.3]} 27... Bc7 {[%clk
0:02:30.2]} 28. Qg5 {[%clk 0:02:30.2]} 28... Qxg5 {[%clk 0:02:08.5]} 29. Rxg5
{[%clk 0:02:26.8]} 29... Bc8 {[%clk 0:02:07.8]} 30. Rf1 {[%clk 0:02:18.7]} 30...
Bd7 {[%clk 0:02:05.9]} 31. Bc3 {[%clk 0:02:17.4]} 31... g6 {[%clk 0:02:00.8]}
32. Rxg6+ {[%clk 0:02:15.3]} 32... Kh7 {[%clk 0:01:58.5]} 33. Rg7+ {[%clk
0:02:14.5]} 33... Kh6 {[%clk 0:01:55]} 34. Rxd7 {[%clk 0:02:13.6]} 34... Bb6
{[%clk 0:01:50.4]} 35. f5 {[%clk 0:02:05.4]} 35... exf5 {[%clk 0:01:47.1]} 36.
Rxf5 {[%clk 0:02:02.1]} 36... Re8 {[%clk 0:01:44]} 37. Re5 {[%clk 0:01:59.4]}
37... Rf8 {[%clk 0:01:41.3]} 38. Rd6+ {[%clk 0:01:56]} 38... Kh7 {[%clk
0:01:35.2]} 39. Re7+ {[%clk 0:01:54.4]} 39... Kg8 {[%clk 0:01:33.5]} 40. Rg6#
{[%clk 0:01:49]} 1-0

[Event "Live Chess"]
[Site "Chess.com"]
[Date "2023.05.21"]
[Round "-"]
[White "CeladonFish"]
[Black "Dark_Night123"]
[Result "0-1"]
[WhiteElo "1117"]
[BlackElo "1564"]
[TimeControl "300"]
[EndTime "16:23:11 PDT"]
[Termination "Dark_Night123 won by checkmate"]

1. d4 {[%clk 0:04:59.3]} 1... Nf6 {[%clk 0:04:59]} 2. c4 {[%clk 0:04:57.9]} 2...
e6 {[%clk 0:04:58.6]} 3. Nc3 {[%clk 0:04:56.1]} 3... Bb4 {[%clk 0:04:58.1]} 4.
Bd2 {[%clk 0:04:54.5]} 4... Nc6 {[%clk 0:04:55.2]} 5. a3 {[%clk 0:04:51.3]} 5...
Bxc3 {[%clk 0:04:52.5]} 6. Bxc3 {[%clk 0:04:49.8]} 6... d5 {[%clk 0:04:52.2]} 7.
cxd5 {[%clk 0:04:48.5]} 7... Nxd5 {[%clk 0:04:51.2]} 8. Qc2 {[%clk 0:04:47]}
8... O-O {[%clk 0:04:50.1]} 9. Nf3 {[%clk 0:04:45.9]} 9... Nxc3 {[%clk
0:04:45.4]} 10. bxc3 {[%clk 0:04:44.4]} 10... Re8 {[%clk 0:04:43.6]} 11. h4
{[%clk 0:04:40.9]} 11... e5 {[%clk 0:04:42.7]} 12. Ng5 {[%clk 0:04:39.1]} 12...
g6 {[%clk 0:04:38.9]} 13. Qb3 {[%clk 0:04:13.4]} 13... Qf6 {[%clk 0:04:34.5]}
14. dxe5 {[%clk 0:04:08.8]} 14... Nxe5 {[%clk 0:04:32.7]} 15. f4 {[%clk
0:04:00.6]} 15... Nd3+ {[%clk 0:04:28.3]} 16. Kd2 {[%clk 0:03:53.7]} 16... Nxf4
{[%clk 0:04:26.3]} 17. g3 {[%clk 0:03:42.7]} 17... Be6 {[%clk 0:04:16.5]} 18.
Qxb7 {[%clk 0:03:40.1]} 18... Rad8+ {[%clk 0:04:15.2]} 19. Kc2 {[%clk
0:03:38.4]} 19... Qf5+ {[%clk 0:04:11.3]} 20. e4 {[%clk 0:03:29]} 20... Qa5
{[%clk 0:03:59.3]} 21. gxf4 {[%clk 0:03:26.3]} 21... Qa4+ {[%clk 0:03:57.8]} 22.
Kc1 {[%clk 0:03:07.5]} 22... Rd1+ {[%clk 0:03:55.9]} 23. Kb2 {[%clk 0:03:04.3]}
23... Rd2+ {[%clk 0:03:53.2]} 24. Kc1 {[%clk 0:03:02.1]} 24... Qc2# {[%clk
0:03:52.2]} 0-1

[Event "Live Chess"]
[Site "Chess.com"]
[Date "2023.05.21"]
[Round "-"]
[White "1600x"]
[Black "flyingpuffins"]
[Result "0-1"]
[WhiteElo "1818"]
[BlackElo "1951"]
[TimeControl "300"]
[EndTime "16:23:24 PDT"]
[Termination "flyingpuffins won by resignation"]

1. e4 {[%clk 0:04:46.3]} 1... c5 {[%clk 0:04:57.4]} 2. d4 {[%clk 0:04:41.7]}
2... cxd4 {[%clk 0:04:55.9]} 3. c3 {[%clk 0:04:35.5]} 3... g6 {[%clk 0:04:47]}
4. Ne2 {[%clk 0:04:34.9]} 4... Bg7 {[%clk 0:04:45.4]} 5. Nxd4 {[%clk 0:04:34.1]}
5... Nc6 {[%clk 0:04:43.9]} 6. Bc4 {[%clk 0:04:31.9]} 6... Nf6 {[%clk
0:04:41.1]} 7. Qd3 {[%clk 0:04:28.4]} 7... O-O {[%clk 0:04:38.7]} 8. O-O {[%clk
0:04:26.7]} 8... Ne5 {[%clk 0:04:38]} 9. Qe2 {[%clk 0:04:25.2]} 9... Nxc4 {[%clk
0:04:36.7]} 10. Qxc4 {[%clk 0:04:23.9]} 10... Nxe4 {[%clk 0:04:35.8]} 11. Re1
{[%clk 0:04:22.3]} 11... d5 {[%clk 0:04:34.7]} 12. Qe2 {[%clk 0:04:20.4]} 12...
e5 {[%clk 0:04:29.1]} 13. Nf3 {[%clk 0:04:18.4]} 13... Bg4 {[%clk 0:04:27.2]}
14. h3 {[%clk 0:04:15.9]} 14... Bxf3 {[%clk 0:04:25.9]} 15. gxf3 {[%clk
0:04:10.4]} 15... Ng5 {[%clk 0:04:21.2]} 16. Kg2 {[%clk 0:04:06.4]} 16... Ne6
{[%clk 0:04:19.1]} 17. Qb5 {[%clk 0:04:01.4]} 17... b6 {[%clk 0:04:00.9]} 18.
Na3 {[%clk 0:03:56.2]} 18... Rc8 {[%clk 0:03:56.2]} 19. Qa4 {[%clk 0:03:54.3]}
19... Nc5 {[%clk 0:03:48.4]} 20. Qxa7 {[%clk 0:03:52.2]} 20... Ra8 {[%clk
0:03:39.2]} 21. Qxa8 {[%clk 0:03:48.1]} 21... Qxa8 {[%clk 0:03:37.4]} 22. h4
{[%clk 0:03:46.4]} 22... Nd3 {[%clk 0:03:35.4]} 23. Rh1 {[%clk 0:03:43.9]} 23...
Nxc1 {[%clk 0:03:33.9]} 24. Raxc1 {[%clk 0:03:42.4]} 24... e4 {[%clk 0:03:30]}
25. fxe4 {[%clk 0:03:40.8]} 25... dxe4 {[%clk 0:03:29.3]} 26. Rce1 {[%clk
0:03:39.3]} 26... e3+ {[%clk 0:03:28.2]} 27. f3 {[%clk 0:03:35.4]} 27... Re8
{[%clk 0:03:26.2]} 28. Nc2 {[%clk 0:03:26.5]} 28... Qxa2 {[%clk 0:03:22.1]} 29.
Rb1 {[%clk 0:03:20.2]} 29... Qb3 {[%clk 0:03:19.2]} 30. Nb4 {[%clk 0:03:17.7]}
30... e2 {[%clk 0:03:14.9]} 31. Nd3 {[%clk 0:03:15.5]} 31... Qc2 {[%clk
0:03:09.3]} 32. Rhe1 {[%clk 0:03:06.2]} 32... Qxd3 {[%clk 0:03:06.9]} 33. Rbc1
{[%clk 0:03:04.5]} 33... h5 {[%clk 0:03:02.2]} 34. Rb1 {[%clk 0:03:02.1]} 34...
Qxb1 {[%clk 0:03:00.5]} 35. Rxb1 {[%clk 0:02:56.8]} 35... e1=Q {[%clk
0:03:00.4]} 36. Rxe1 {[%clk 0:02:55.2]} 36... Rxe1 {[%clk 0:03:00.3]} 37. Kf2
{[%clk 0:02:53.8]} 37... Rc1 {[%clk 0:02:57.8]} 38. Kg3 {[%clk 0:02:51.4]} 38...
Rc2 {[%clk 0:02:56.6]} 39. c4 {[%clk 0:02:49.6]} 39... Rxc4 {[%clk 0:02:55.6]}
40. b3 {[%clk 0:02:48.3]} 40... Rb4 {[%clk 0:02:54.9]} 41. Kh3 {[%clk
0:02:42.3]} 41... Rxb3 {[%clk 0:02:54.4]} 42. Kg2 {[%clk 0:02:41]} 42... b5
{[%clk 0:02:53.3]} 43. Kh2 {[%clk 0:02:39.9]} 43... Rc3 {[%clk 0:02:52.5]} 44.
Kg2 {[%clk 0:02:38.5]} 44... b4 {[%clk 0:02:51.6]} 45. Kg3 {[%clk 0:02:37.5]}
45... b3 {[%clk 0:02:50.9]} 46. Kh3 {[%clk 0:02:35]} 46... b2 {[%clk 0:02:50.8]}
47. Kg3 {[%clk 0:02:34]} 47... b1=Q {[%clk 0:02:50.7]} 48. Kf2 {[%clk 0:02:32]}
48... Bd4+ {[%clk 0:02:46.7]} 0-1

[Event "Live Chess"]
[Site "Chess.com"]
[Date "2023.05.21"]
[Round "-"]
[White "DRS44"]
[Black "Singapourfeuj"]
[Result "0-1"]
[WhiteElo "1351"]
[BlackElo "2216"]
[TimeControl "300"]
[EndTime "16:23:34 PDT"]
[Termination "Singapourfeuj won by resignation"]

1. e4 {[%clk 0:04:50.1]} 1... e6 {[%clk 0:04:58.3]} 2. d4 {[%clk 0:04:46.6]}
2... d5 {[%clk 0:04:57.3]} 3. e5 {[%clk 0:04:43.8]} 3... c5 {[%clk 0:04:56.2]}
4. c3 {[%clk 0:04:37.7]} 4... Nc6 {[%clk 0:04:55.1]} 5. Nf3 {[%clk 0:04:33.4]}
5... Bd7 {[%clk 0:04:54.1]} 6. Bd3 {[%clk 0:04:28.9]} 6... Qb6 {[%clk
0:04:52.8]} 7. O-O {[%clk 0:04:16.9]} 7... Nh6 {[%clk 0:04:48.6]} 8. Bxh6 {[%clk
0:04:05.7]} 8... gxh6 {[%clk 0:04:45.1]} 9. Qc2 {[%clk 0:03:49.6]} 9... Be7
{[%clk 0:04:40.8]} 10. Bxh7 {[%clk 0:03:41.4]} 10... cxd4 {[%clk 0:04:39.5]} 11.
Bd3 {[%clk 0:03:26.9]} 11... Rc8 {[%clk 0:04:31.9]} 12. Qd2 {[%clk 0:03:17.1]}
12... Rg8 {[%clk 0:04:21.4]} 13. Qf4 {[%clk 0:03:09.2]} 13... Kd8 {[%clk
0:04:18.1]} 14. Qxf7 {[%clk 0:02:51.2]} 14... Kc7 {[%clk 0:04:17.1]} 15. cxd4
{[%clk 0:02:37.7]} 15... Rcf8 {[%clk 0:04:15.3]} 16. Qh5 {[%clk 0:02:32.3]}
16... Nxd4 {[%clk 0:04:14]} 17. Nxd4 {[%clk 0:02:26.1]} 17... Qxd4 {[%clk
0:04:12.8]} 18. Qe2 {[%clk 0:02:10.2]} 18... Bc6 {[%clk 0:04:06.4]} 19. Nc3
{[%clk 0:02:04]} 19... Qh4 {[%clk 0:04:03.9]} 20. g3 {[%clk 0:01:51.6]} 20...
Bc5 {[%clk 0:04:00.3]} 21. Kg2 {[%clk 0:01:22.9]} 21... d4+ {[%clk 0:03:51.8]}
22. Ne4 {[%clk 0:01:11.8]} 22... Rf4 {[%clk 0:03:50.4]} 23. Kh1 {[%clk
0:00:51.1]} 23... Bxe4+ {[%clk 0:03:44.8]} 24. Bxe4 {[%clk 0:00:43.6]} 24...
Rxe4 {[%clk 0:03:44]} 25. gxh4 {[%clk 0:00:28.4]} 25... Rxe2 {[%clk 0:03:42.7]}
0-1